[Event "Titled Tuesday Blitz June 20 Early 2023"]
[White "Moksh Amit Doshi"]
[Black "Luo, Terry"]
[WhiteFideId "25064967"]
[BlackFideId "30931045"]
[WhiteElo "2297"]
[BlackElo "2265"]
[Result "1-0"]
[Round "4"]
[TimeControl "180+2"]
[Date "2023.06.20"]
[WhiteClock "0:01:03"]
[BlackClock "0:01:37"]
[Board "121"]

1. e4 {[%clk 0:02:47]}  e5 {[%clk 0:02:59]} 2. Nf3 {[%clk 0:02:46]}  Nc6 {[%clk 0:03:00]} 3. Bb5 {[%clk 0:02:42]}  a6 {[%clk 0:02:59]} 4. Ba4 {[%clk 0:02:42]}  Nf6 {[%clk 0:03:00]} 5. O-O {[%clk 0:02:43]}  Be7 {[%clk 0:03:00]} 6. Re1 {[%clk 0:02:42]}  b5 {[%clk 0:03:00]} 7. Bb3 {[%clk 0:02:43]}  d6 {[%clk 0:03:01]} 8. c3 {[%clk 0:02:43]}  O-O {[%clk 0:02:59]} 9. h3 {[%clk 0:02:44]}  h6 {[%clk 0:02:57]} 10. d4 {[%clk 0:02:43]}  Bd7 {[%clk 0:02:58]} 11. Nbd2 {[%clk 0:02:42]}  a5 {[%clk 0:02:58]} 12. Nf1 {[%clk 0:02:42]}  a4 {[%clk 0:02:58]} 13. Bc2 {[%clk 0:02:42]}  Re8 {[%clk 0:02:59]} 14. Ng3 {[%clk 0:02:43]}  Bf8 {[%clk 0:02:59]} 15. Rb1 {[%clk 0:02:22]}  exd4 {[%clk 0:02:54]} 16. cxd4 {[%clk 0:02:21]}  Nb4 {[%clk 0:02:55]} 17. Bf4 {[%clk 0:02:18]}  a3 {[%clk 0:02:36]} 18. Bb3 {[%clk 0:02:15]}  Be6 {[%clk 0:02:34]} 19. d5 {[%clk 0:02:04]}  Bd7 {[%clk 0:02:32]} 20. Qd2 {[%clk 0:02:04]}  Na6 {[%clk 0:02:29]} 21. e5 {[%clk 0:01:58]}  dxe5 {[%clk 0:02:25]} 22. Nxe5 {[%clk 0:01:58]}  Bd6 {[%clk 0:02:24]} 23. Bc2 {[%clk 0:01:49]}  Nc5 {[%clk 0:02:15]} 24. b4 {[%clk 0:01:48]}  Na4 {[%clk 0:02:12]} 25. Rb3 {[%clk 0:01:43]}  Nb6 {[%clk 0:02:12]} 26. Nf5 {[%clk 0:01:30]}  Bxf5 {[%clk 0:02:09]} 27. Bxf5 {[%clk 0:01:27]}  Bxe5 {[%clk 0:02:07]} 28. Bxe5 {[%clk 0:01:22]}  Nc4 {[%clk 0:02:07]} 29. Qd4 {[%clk 0:01:22]}  Qxd5 {[%clk 0:02:06]} 30. Qxd5 {[%clk 0:01:09]}  Nxd5 {[%clk 0:02:05]} 31. Bc3 {[%clk 0:01:10]}  Nxc3 {[%clk 0:01:44]} 32. Rxe8+ {[%clk 0:01:08]}  Rxe8 {[%clk 0:01:45]} 33. Rxc3 {[%clk 0:01:09]}  Re1+ {[%clk 0:01:42]} 34. Kh2 {[%clk 0:01:09]}  Ra1 {[%clk 0:01:37]} 35. Rc2 {[%clk 0:01:08]}  Rb1 {[%clk 0:01:37]} 36. Rxc4 {[%clk 0:01:05]}  Rb2 {[%clk 0:01:37]} 37. Rxc7 {[%clk 0:01:03]}  Rxf2 {[%clk 0:01:37]} 38. Rc8# {[%clk 0:01:03]} 1-0


[Site "https://www.chess.com"]

[Event "Titled Tuesday Blitz June 20 Early 2023"]
[White "Janaszak, Dawid"]
[Black "Balla, Tamas-Kristof"]
[WhiteFideId "1119206"]
[BlackFideId "1208497"]
[WhiteElo "2220"]
[BlackElo "2334"]
[Result "1-0"]
[Round "4"]
[TimeControl "180+2"]
[Date "2023.06.20"]
[WhiteClock "0:00:14"]
[BlackClock "0:00:02"]
[Board "122"]

1. e4 {[%clk 0:03:00]}  c5 {[%clk 0:02:59]} 2. Nc3 {[%clk 0:03:00]}  Nc6 {[%clk 0:02:59]} 3. Bb5 {[%clk 0:02:58]}  Nd4 {[%clk 0:02:59]} 4. Nf3 {[%clk 0:02:59]}  Nf6 {[%clk 0:02:55]} 5. e5 {[%clk 0:02:52]}  Nxb5 {[%clk 0:02:54]} 6. Nxb5 {[%clk 0:02:52]}  Nd5 {[%clk 0:02:55]} 7. Ng5 {[%clk 0:02:52]}  f6 {[%clk 0:02:54]} 8. exf6 {[%clk 0:02:42]}  Nxf6 {[%clk 0:02:55]} 9. O-O {[%clk 0:02:35]}  a6 {[%clk 0:02:40]} 10. Nc3 {[%clk 0:02:29]}  e6 {[%clk 0:02:41]} 11. d4 {[%clk 0:02:27]}  cxd4 {[%clk 0:02:32]} 12. Qxd4 {[%clk 0:02:28]}  Be7 {[%clk 0:02:32]} 13. Bf4 {[%clk 0:02:14]}  O-O {[%clk 0:02:30]} 14. Bd6 {[%clk 0:02:10]}  b5 {[%clk 0:02:15]} 15. Rad1 {[%clk 0:02:09]}  Bb7 {[%clk 0:02:11]} 16. Rfe1 {[%clk 0:02:07]}  Bxd6 {[%clk 0:01:24]} 17. Qxd6 {[%clk 0:02:07]}  Ng4 {[%clk 0:01:25]} 18. Nce4 {[%clk 0:01:37]}  Nxf2 {[%clk 0:01:11]} 19. Nxe6 {[%clk 0:01:23]}  Nxe4 {[%clk 0:00:32]} 20. Rxe4 {[%clk 0:01:08]}  Qf6 {[%clk 0:00:10]} 21. Nxf8 {[%clk 0:01:05]}  Qxd6 {[%clk 0:00:04]} 22. Rxd6 {[%clk 0:01:04]}  Bxe4 {[%clk 0:00:04]} 23. Nxd7 {[%clk 0:01:01]}  Bxc2 {[%clk 0:00:05]} 24. Nb6 {[%clk 0:00:42]}  Rb8 {[%clk 0:00:02]} 25. Kf2 {[%clk 0:00:41]}  Bg6 {[%clk 0:00:02]} 26. Ke3 {[%clk 0:00:40]}  Rf8 {[%clk 0:00:02]} 27. Nd5 {[%clk 0:00:39]}  Ra8 {[%clk 0:00:03]} 28. Nc7 {[%clk 0:00:39]}  Rc8 {[%clk 0:00:03]} 29. Nxa6 {[%clk 0:00:39]}  Rc2 {[%clk 0:00:04]} 30. Rd2 {[%clk 0:00:39]}  Rc1 {[%clk 0:00:04]} 31. b3 {[%clk 0:00:34]}  h6 {[%clk 0:00:04]} 32. a4 {[%clk 0:00:34]}  bxa4 {[%clk 0:00:04]} 33. bxa4 {[%clk 0:00:35]}  Ra1 {[%clk 0:00:05]} 34. Nc5 {[%clk 0:00:35]}  Bf7 {[%clk 0:00:05]} 35. Rd8+ {[%clk 0:00:34]}  Kh7 {[%clk 0:00:06]} 36. Rd7 {[%clk 0:00:35]}  Bg6 {[%clk 0:00:06]} 37. Ra7 {[%clk 0:00:32]}  Bc2 {[%clk 0:00:06]} 38. a5 {[%clk 0:00:31]}  Ra3+ {[%clk 0:00:05]} 39. Kd4 {[%clk 0:00:30]}  Bd1 {[%clk 0:00:05]} 40. a6 {[%clk 0:00:29]}  Ra2 {[%clk 0:00:05]} 41. Rf7 {[%clk 0:00:20]}  Rxg2 {[%clk 0:00:04]} 42. a7 {[%clk 0:00:21]}  Ra2 {[%clk 0:00:05]} 43. Ne6 {[%clk 0:00:17]}  Bb3 {[%clk 0:00:03]} 44. Rxg7+ {[%clk 0:00:15]}  Kh8 {[%clk 0:00:04]} 45. Rb7 {[%clk 0:00:16]}  Bxe6 {[%clk 0:00:04]} 46. Rb8+ {[%clk 0:00:17]}  Kg7 {[%clk 0:00:04]} 47. a8=Q {[%clk 0:00:18]}  Rxa8 {[%clk 0:00:05]} 48. Rxa8 {[%clk 0:00:18]}  Kg6 {[%clk 0:00:06]} 49. Ke5 {[%clk 0:00:18]}  Bg4 {[%clk 0:00:06]} 50. Rg8+ {[%clk 0:00:18]}  Kh5 {[%clk 0:00:05]} 51. Kf4 {[%clk 0:00:18]}  Be6 {[%clk 0:00:05]} 52. Re8 {[%clk 0:00:17]}  Bf7 {[%clk 0:00:05]} 53. Rh8 {[%clk 0:00:16]}  Be6 {[%clk 0:00:05]} 54. Ke5 {[%clk 0:00:16]}  Bg4 {[%clk 0:00:05]} 55. Kf6 {[%clk 0:00:16]}  Be2 {[%clk 0:00:03]} 56. Kg7 {[%clk 0:00:16]}  Kg4 {[%clk 0:00:03]} 57. Rxh6 {[%clk 0:00:17]}  Bf1 {[%clk 0:00:03]} 58. h4 {[%clk 0:00:15]}  Bd3 {[%clk 0:00:03]} 59. Kf6 {[%clk 0:00:14]}  Be2 {[%clk 0:00:02]} 60. Rh8 {[%clk 0:00:14]}  Bd3 {[%clk 0:00:02]} 61. h5 {[%clk 0:00:14]}  Kf4 {[%clk 0:00:02]} 62. h6 {[%clk 0:00:14]} 1-0


[Site "https://www.chess.com"]

[Event "Titled Tuesday Blitz June 20 Early 2023"]
[White "Degenbaev, Aziz"]
[Black "i_like_explosions"]
[WhiteFideId "13802640"]
[WhiteElo "2152"]
[BlackElo "2396"]
[Result "1-0"]
[Round "4"]
[TimeControl "180+2"]
[Date "2023.06.20"]
[WhiteClock "0:00:05"]
[BlackClock "0:00:02"]
[Board "123"]

1. e4 {[%clk 0:03:00]}  c5 {[%clk 0:02:59]} 2. Nf3 {[%clk 0:03:00]}  Nc6 {[%clk 0:02:59]} 3. Bb5 {[%clk 0:03:00]}  e6 {[%clk 0:02:59]} 4. Bxc6 {[%clk 0:02:57]}  bxc6 {[%clk 0:03:00]} 5. d3 {[%clk 0:02:57]}  Qc7 {[%clk 0:03:00]} 6. O-O {[%clk 0:02:42]}  e5 {[%clk 0:02:59]} 7. Nh4 {[%clk 0:02:36]}  Ne7 {[%clk 0:02:57]} 8. f4 {[%clk 0:02:32]}  Ng6 {[%clk 0:02:45]} 9. Nxg6 {[%clk 0:02:31]}  hxg6 {[%clk 0:02:45]} 10. Qf3 {[%clk 0:02:28]}  d6 {[%clk 0:02:15]} 11. Na3 {[%clk 0:02:09]}  Be6 {[%clk 0:02:11]} 12. b3 {[%clk 0:02:03]}  Be7 {[%clk 0:02:09]} 13. f5 {[%clk 0:01:55]}  gxf5 {[%clk 0:02:08]} 14. exf5 {[%clk 0:01:55]}  Bd5 {[%clk 0:02:08]} 15. Qg3 {[%clk 0:01:52]}  Bh4 {[%clk 0:01:54]} 16. Qg4 {[%clk 0:01:41]}  f6 {[%clk 0:00:40]} 17. g3 {[%clk 0:01:39]}  Bg5 {[%clk 0:00:40]} 18. Bxg5 {[%clk 0:01:39]}  fxg5 {[%clk 0:00:41]} 19. c4 {[%clk 0:01:39]}  Bf7 {[%clk 0:00:38]} 20. Qxg5 {[%clk 0:01:38]}  Rh5 {[%clk 0:00:37]} 21. Qg4 {[%clk 0:01:17]}  Qd7 {[%clk 0:00:28]} 22. Nc2 {[%clk 0:01:13]}  O-O-O {[%clk 0:00:27]} 23. b4 {[%clk 0:01:13]}  Rdh8 {[%clk 0:00:22]} 24. Rf2 {[%clk 0:01:12]}  g6 {[%clk 0:00:20]} 25. b5 {[%clk 0:00:53]}  gxf5 {[%clk 0:00:19]} 26. bxc6 {[%clk 0:00:31]}  Qe6 {[%clk 0:00:19]} 27. Qf3 {[%clk 0:00:29]}  Be8 {[%clk 0:00:14]} 28. Rb1 {[%clk 0:00:26]}  Qh6 {[%clk 0:00:11]} 29. c7 {[%clk 0:00:17]}  Kxc7 {[%clk 0:00:05]} 30. Qb7+ {[%clk 0:00:10]}  Kd8 {[%clk 0:00:06]} 31. Qxa7 {[%clk 0:00:08]}  Bd7 {[%clk 0:00:03]} 32. Rb8+ {[%clk 0:00:04]}  Ke7 {[%clk 0:00:03]} 33. Rxh8 {[%clk 0:00:05]}  Qxh8 {[%clk 0:00:03]} 34. Ne3 {[%clk 0:00:05]}  f4 {[%clk 0:00:02]} 35. Nd5+ {[%clk 0:00:06]}  Ke6 {[%clk 0:00:02]} 36. gxf4 {[%clk 0:00:05]}  Qg7+ {[%clk 0:00:03]} 37. Kf1 {[%clk 0:00:05]}  Qg4 {[%clk 0:00:01]} 38. Nc7+ {[%clk 0:00:02]}  Ke7 {[%clk 0:00:01]} 39. Nd5+ {[%clk 0:00:03]}  Ke6 {[%clk 0:00:01]} 40. Re2 {[%clk 0:00:02]}  Qf3+ {[%clk 0:00:02]} 41. Ke1 {[%clk 0:00:02]}  Qh1+ {[%clk 0:00:02]} 42. Kd2 {[%clk 0:00:03]}  Rxh2 {[%clk 0:00:03]} 43. fxe5 {[%clk 0:00:03]}  Rxe2+ {[%clk 0:00:02]} 44. Kxe2 {[%clk 0:00:04]}  Qh2+ {[%clk 0:00:03]} 45. Kd1 {[%clk 0:00:04]}  Qxe5 {[%clk 0:00:04]} 46. Qb8 {[%clk 0:00:03]}  Qa1+ {[%clk 0:00:03]} 47. Ke2 {[%clk 0:00:03]}  Qxa2+ {[%clk 0:00:04]} 48. Ke3 {[%clk 0:00:04]}  Qa1 {[%clk 0:00:02]} 49. Qg8+ {[%clk 0:00:04]}  Kf5 {[%clk 0:00:02]} 50. Qf7+ {[%clk 0:00:03]}  Kg4 {[%clk 0:00:02]} 51. Qxd7+ {[%clk 0:00:04]}  Kg3 {[%clk 0:00:03]} 52. Qxd6+ {[%clk 0:00:04]}  Kg2 {[%clk 0:00:03]} 53. Qxc5 {[%clk 0:00:03]}  Qe1+ {[%clk 0:00:04]} 54. Kf4 {[%clk 0:00:01]}  Qh4+ {[%clk 0:00:02]} 55. Ke5 {[%clk 0:00:01]}  Qg5+ {[%clk 0:00:02]} 56. Kd6 {[%clk 0:00:02]}  Qg6+ {[%clk 0:00:03]} 57. Kc7 {[%clk 0:00:02]}  Qf7+ {[%clk 0:00:03]} 58. Kb6 {[%clk 0:00:03]}  Kf1 {[%clk 0:00:02]} 59. Qc6 {[%clk 0:00:02]}  Ke2 {[%clk 0:00:02]} 60. c5 {[%clk 0:00:03]}  Qf2 {[%clk 0:00:01]} 61. Nc3+ {[%clk 0:00:01]}  Ke1 {[%clk 0:00:01]} 62. Nb5 {[%clk 0:00:01]}  Qb2 {[%clk 0:00:01]} 63. Qd5 {[%clk 0:00:02]}  Kd2 {[%clk 0:00:02]} 64. c6 {[%clk 0:00:02]}  Qb4 {[%clk 0:00:02]} 65. c7 {[%clk 0:00:03]}  Qa4 {[%clk 0:00:03]} 66. c8=Q {[%clk 0:00:03]}  Qa1 {[%clk 0:00:03]} 67. Qc3+ {[%clk 0:00:03]}  Qxc3 {[%clk 0:00:03]} 68. Nxc3 {[%clk 0:00:04]}  Kxc3 {[%clk 0:00:02]} 69. Qc4+ {[%clk 0:00:05]} 1-0


[Site "https://www.chess.com"]

[Event "Titled Tuesday Blitz June 20 Early 2023"]
[White "Belov, Alexei"]
[Black "Szente Varga, Fruzsina"]
[WhiteFideId "4128206"]
[BlackFideId "712264"]
[WhiteElo "2574"]
[BlackElo "1994"]
[Result "1-0"]
[Round "4"]
[TimeControl "180+2"]
[Date "2023.06.20"]
[WhiteClock "0:01:05"]
[BlackClock "0:00:14"]
[Board "124"]

1. e4 {[%clk 0:03:00]}  e5 {[%clk 0:02:37]} 2. Nf3 {[%clk 0:03:00]}  Nc6 {[%clk 0:02:36]} 3. Bb5 {[%clk 0:03:00]}  a6 {[%clk 0:02:35]} 4. Ba4 {[%clk 0:03:01]}  Nf6 {[%clk 0:02:28]} 5. d4 {[%clk 0:03:00]}  exd4 {[%clk 0:02:15]} 6. O-O {[%clk 0:03:00]}  b5 {[%clk 0:02:10]} 7. Bb3 {[%clk 0:03:00]}  d6 {[%clk 0:02:11]} 8. Ng5 {[%clk 0:02:52]}  Ne5 {[%clk 0:01:43]} 9. f4 {[%clk 0:02:51]}  Nc4 {[%clk 0:01:42]} 10. e5 {[%clk 0:02:30]}  Ng4 {[%clk 0:01:24]} 11. e6 {[%clk 0:02:14]}  Bxe6 {[%clk 0:01:04]} 12. Nxe6 {[%clk 0:02:09]}  Qh4 {[%clk 0:01:05]} 13. Nxc7+ {[%clk 0:01:51]}  Kd7 {[%clk 0:01:05]} 14. h3 {[%clk 0:01:51]}  Nge3 {[%clk 0:01:03]} 15. Bxe3 {[%clk 0:01:42]}  Nxe3 {[%clk 0:01:02]} 16. Qxd4 {[%clk 0:01:41]}  Nxf1 {[%clk 0:00:54]} 17. Nxa8 {[%clk 0:01:35]}  Qd8 {[%clk 0:00:17]} 18. Nb6+ {[%clk 0:01:29]}  Kc6 {[%clk 0:00:16]} 19. Bd5+ {[%clk 0:01:25]}  Kc7 {[%clk 0:00:16]} 20. Kxf1 {[%clk 0:01:22]}  Be7 {[%clk 0:00:16]} 21. Bf3 {[%clk 0:01:10]}  Bf6 {[%clk 0:00:15]} 22. Nd5+ {[%clk 0:01:10]}  Kb8 {[%clk 0:00:15]} 23. Nxf6 {[%clk 0:01:09]}  gxf6 {[%clk 0:00:15]} 24. Nc3 {[%clk 0:01:09]}  Re8 {[%clk 0:00:15]} 25. a4 {[%clk 0:01:06]}  b4 {[%clk 0:00:14]} 26. Qxb4+ {[%clk 0:01:05]} 1-0


[Site "https://www.chess.com"]

[Event "Titled Tuesday Blitz June 20 Early 2023"]
[White "Mazurkiewicz, Michal"]
[Black "Ambartsumova, Karina"]
[WhiteFideId "1124943"]
[BlackFideId "4166299"]
[WhiteElo "2063"]
[BlackElo "2240"]
[Result "1-0"]
[Round "4"]
[TimeControl "180+2"]
[Date "2023.06.20"]
[WhiteClock "0:01:35"]
[BlackClock "0:00:11"]
[Board "126"]

1. e4 {[%clk 0:03:00]}  c5 {[%clk 0:02:59]} 2. Nf3 {[%clk 0:03:00]}  Nc6 {[%clk 0:02:59]} 3. g3 {[%clk 0:03:00]}  Qc7 {[%clk 0:02:59]} 4. Bg2 {[%clk 0:03:00]}  Nf6 {[%clk 0:03:00]} 5. d3 {[%clk 0:03:00]}  g6 {[%clk 0:02:59]} 6. O-O {[%clk 0:03:00]}  Bg7 {[%clk 0:02:59]} 7. Re1 {[%clk 0:03:01]}  d6 {[%clk 0:02:56]} 8. c3 {[%clk 0:03:01]}  e5 {[%clk 0:02:56]} 9. h3 {[%clk 0:02:56]}  O-O {[%clk 0:02:56]} 10. d4 {[%clk 0:02:56]}  cxd4 {[%clk 0:02:38]} 11. cxd4 {[%clk 0:02:57]}  Nxd4 {[%clk 0:02:36]} 12. Nxd4 {[%clk 0:02:58]}  exd4 {[%clk 0:02:37]} 13. Qxd4 {[%clk 0:02:58]}  Ng4 {[%clk 0:02:37]} 14. Qd1 {[%clk 0:02:54]}  Ne5 {[%clk 0:02:37]} 15. Nc3 {[%clk 0:02:54]}  Be6 {[%clk 0:02:35]} 16. Nd5 {[%clk 0:02:53]}  Bxd5 {[%clk 0:02:26]} 17. Qxd5 {[%clk 0:02:53]}  Rac8 {[%clk 0:02:17]} 18. Bf4 {[%clk 0:02:46]}  Qb6 {[%clk 0:02:14]} 19. b3 {[%clk 0:02:33]}  Rc5 {[%clk 0:02:11]} 20. Qd2 {[%clk 0:02:14]}  Rc6 {[%clk 0:02:11]} 21. Rac1 {[%clk 0:02:10]}  Rfc8 {[%clk 0:02:11]} 22. Rxc6 {[%clk 0:02:10]}  Rxc6 {[%clk 0:02:11]} 23. Rc1 {[%clk 0:02:01]}  Qa6 {[%clk 0:02:11]} 24. Be3 {[%clk 0:01:47]}  b5 {[%clk 0:01:00]} 25. Rxc6 {[%clk 0:01:40]}  Qxc6 {[%clk 0:01:00]} 26. f4 {[%clk 0:01:40]}  Nd7 {[%clk 0:00:51]} 27. e5 {[%clk 0:01:38]}  d5 {[%clk 0:00:46]} 28. Bxd5 {[%clk 0:01:36]}  Qc7 {[%clk 0:00:30]} 29. e6 {[%clk 0:01:36]}  Nf6 {[%clk 0:00:21]} 30. exf7+ {[%clk 0:01:36]}  Kf8 {[%clk 0:00:11]} 31. Qb4+ {[%clk 0:01:35]} 1-0


[Site "https://www.chess.com"]

[Event "Titled Tuesday Blitz June 20 Early 2023"]
[White "Ismagilov, Damir"]
[Black "Kovacsy, Barnabas"]
[WhiteFideId "34199982"]
[BlackFideId "769290"]
[WhiteElo "2104"]
[BlackElo "2130"]
[Result "0-1"]
[Round "4"]
[TimeControl "180+2"]
[Date "2023.06.20"]
[WhiteClock "0:00:13"]
[BlackClock "0:00:43"]
[Board "129"]

1. d4 {[%clk 0:03:00]}  Nf6 {[%clk 0:02:59]} 2. Bf4 {[%clk 0:03:00]}  g6 {[%clk 0:02:59]} 3. Nc3 {[%clk 0:03:00]}  Bg7 {[%clk 0:02:57]} 4. Qd2 {[%clk 0:02:59]}  O-O {[%clk 0:02:55]} 5. Bh6 {[%clk 0:02:59]}  d5 {[%clk 0:02:53]} 6. O-O-O {[%clk 0:02:51]}  Ne4 {[%clk 0:02:53]} 7. Nxe4 {[%clk 0:02:50]}  dxe4 {[%clk 0:02:54]} 8. Bxg7 {[%clk 0:02:45]}  Kxg7 {[%clk 0:02:54]} 9. f3 {[%clk 0:02:45]}  Qd5 {[%clk 0:02:52]} 10. Kb1 {[%clk 0:02:38]}  a5 {[%clk 0:02:50]} 11. fxe4 {[%clk 0:02:32]}  Qxe4 {[%clk 0:02:50]} 12. Nf3 {[%clk 0:02:32]}  Nc6 {[%clk 0:02:38]} 13. e3 {[%clk 0:02:29]}  Bf5 {[%clk 0:02:25]} 14. Bd3 {[%clk 0:02:21]}  Qd5 {[%clk 0:02:24]} 15. c4 {[%clk 0:01:50]}  Bxd3+ {[%clk 0:02:17]} 16. Qxd3 {[%clk 0:01:51]}  Qd6 {[%clk 0:02:16]} 17. e4 {[%clk 0:01:47]}  e5 {[%clk 0:02:01]} 18. d5 {[%clk 0:01:27]}  Ne7 {[%clk 0:01:54]} 19. h4 {[%clk 0:01:21]}  f6 {[%clk 0:01:35]} 20. h5 {[%clk 0:01:19]}  g5 {[%clk 0:01:32]} 21. Qe3 {[%clk 0:01:03]}  h6 {[%clk 0:01:31]} 22. c5 {[%clk 0:00:58]}  Qd7 {[%clk 0:01:26]} 23. d6 {[%clk 0:00:50]}  Nc6 {[%clk 0:01:18]} 24. dxc7 {[%clk 0:00:49]}  Qxc7 {[%clk 0:01:19]} 25. Rd6 {[%clk 0:00:49]}  Rfd8 {[%clk 0:01:17]} 26. Rhd1 {[%clk 0:00:48]}  Rxd6 {[%clk 0:01:17]} 27. cxd6 {[%clk 0:00:48]}  Qd7 {[%clk 0:01:13]} 28. a3 {[%clk 0:00:45]}  Rd8 {[%clk 0:01:12]} 29. Qb6 {[%clk 0:00:40]}  Qf7 {[%clk 0:01:06]} 30. Nh2 {[%clk 0:00:20]}  Rd7 {[%clk 0:01:04]} 31. Nf1 {[%clk 0:00:20]}  Qxh5 {[%clk 0:01:00]} 32. Rd2 {[%clk 0:00:15]}  Qh1 {[%clk 0:00:56]} 33. Rd1 {[%clk 0:00:15]}  Qxg2 {[%clk 0:00:52]} 34. Qe3 {[%clk 0:00:14]}  Nd4 {[%clk 0:00:49]} 35. Ng3 {[%clk 0:00:14]}  Qc2+ {[%clk 0:00:46]} 36. Ka2 {[%clk 0:00:13]}  Qxd1 {[%clk 0:00:45]} 37. Nh5+ {[%clk 0:00:13]}  Qxh5 {[%clk 0:00:42]} 38. Qc3 {[%clk 0:00:12]}  Qf7+ {[%clk 0:00:42]} 39. b3 {[%clk 0:00:12]}  Qxb3+ {[%clk 0:00:41]} 40. Qxb3 {[%clk 0:00:12]}  Nxb3 {[%clk 0:00:42]} 41. Kxb3 {[%clk 0:00:13]}  Rxd6 {[%clk 0:00:43]} 42. Kc4 {[%clk 0:00:13]}  Rc6+ {[%clk 0:00:43]} 0-1


[Site "https://www.chess.com"]

[Event "Titled Tuesday Blitz June 20 Early 2023"]
[White "Oro, Faustino"]
[Black "zsizsi99"]
[WhiteFideId "20000197"]
[WhiteElo "1984"]
[BlackElo "2434"]
[Result "1-0"]
[Round "4"]
[TimeControl "180+2"]
[Date "2023.06.20"]
[WhiteClock "0:00:04"]
[BlackClock "0:00:00"]
[Board "133"]

1. e4 {[%clk 0:03:00]}  c5 {[%clk 0:02:53]} 2. Nf3 {[%clk 0:02:59]}  e6 {[%clk 0:02:53]} 3. d4 {[%clk 0:02:59]}  cxd4 {[%clk 0:02:54]} 4. Nxd4 {[%clk 0:03:00]}  Nf6 {[%clk 0:02:54]} 5. Nc3 {[%clk 0:03:00]}  Nc6 {[%clk 0:02:54]} 6. Ndb5 {[%clk 0:02:59]}  Bc5 {[%clk 0:02:54]} 7. Bf4 {[%clk 0:02:46]}  O-O {[%clk 0:02:34]} 8. Bc7 {[%clk 0:02:39]}  Qe7 {[%clk 0:02:34]} 9. Bd6 {[%clk 0:02:39]}  Bxd6 {[%clk 0:02:34]} 10. Qxd6 {[%clk 0:02:40]}  Qd8 {[%clk 0:02:29]} 11. Be2 {[%clk 0:02:25]}  a6 {[%clk 0:02:22]} 12. Na3 {[%clk 0:02:07]}  b5 {[%clk 0:02:18]} 13. Nab1 {[%clk 0:01:26]}  b4 {[%clk 0:02:10]} 14. Nd1 {[%clk 0:01:24]}  Nxe4 {[%clk 0:02:10]} 15. Qf4 {[%clk 0:01:23]}  d5 {[%clk 0:02:07]} 16. O-O {[%clk 0:01:19]}  e5 {[%clk 0:01:51]} 17. Qc1 {[%clk 0:01:06]}  Nd4 {[%clk 0:01:38]} 18. Bd3 {[%clk 0:01:03]}  Nc5 {[%clk 0:01:37]} 19. Qd2 {[%clk 0:00:43]}  e4 {[%clk 0:01:37]} 20. Be2 {[%clk 0:00:35]}  Qf6 {[%clk 0:01:33]} 21. c3 {[%clk 0:00:29]}  Ncb3 {[%clk 0:01:08]} 22. axb3 {[%clk 0:00:25]}  Nxb3 {[%clk 0:01:09]} 23. Qxd5 {[%clk 0:00:19]}  Be6 {[%clk 0:01:09]} 24. Qxe4 {[%clk 0:00:19]}  Nxa1 {[%clk 0:01:09]} 25. Qxb4 {[%clk 0:00:18]}  Rfb8 {[%clk 0:01:01]} 26. Qa4 {[%clk 0:00:17]}  Rxb2 {[%clk 0:00:48]} 27. Nxb2 {[%clk 0:00:16]}  Nb3 {[%clk 0:00:44]} 28. Bc4 {[%clk 0:00:15]}  Nc5 {[%clk 0:00:38]} 29. Qb4 {[%clk 0:00:14]}  Rc8 {[%clk 0:00:33]} 30. Bxe6 {[%clk 0:00:12]}  Qxe6 {[%clk 0:00:34]} 31. Nd2 {[%clk 0:00:12]}  h5 {[%clk 0:00:21]} 32. Nf3 {[%clk 0:00:11]}  Qf6 {[%clk 0:00:21]} 33. Qd4 {[%clk 0:00:11]}  Qb6 {[%clk 0:00:20]} 34. Nc4 {[%clk 0:00:11]}  Qb3 {[%clk 0:00:20]} 35. Nd6 {[%clk 0:00:11]}  Ne6 {[%clk 0:00:19]} 36. Qa7 {[%clk 0:00:09]}  Rf8 {[%clk 0:00:17]} 37. Qxa6 {[%clk 0:00:09]}  Qxc3 {[%clk 0:00:17]} 38. Qc4 {[%clk 0:00:09]}  Qa3 {[%clk 0:00:16]} 39. Ne4 {[%clk 0:00:09]}  Qe7 {[%clk 0:00:14]} 40. h3 {[%clk 0:00:09]}  g6 {[%clk 0:00:13]} 41. Re1 {[%clk 0:00:10]}  Qa7 {[%clk 0:00:10]} 42. Qc3 {[%clk 0:00:09]}  Ng7 {[%clk 0:00:09]} 43. Nf6+ {[%clk 0:00:09]}  Kh8 {[%clk 0:00:09]} 44. Ng5 {[%clk 0:00:08]}  Qb7 {[%clk 0:00:08]} 45. Ne8 {[%clk 0:00:05]}  f6 {[%clk 0:00:08]} 46. Nxf6 {[%clk 0:00:06]}  Qb6 {[%clk 0:00:04]} 47. Nfe4 {[%clk 0:00:05]}  Kg8 {[%clk 0:00:03]} 48. Qc4+ {[%clk 0:00:05]}  Kh8 {[%clk 0:00:03]} 49. Rd1 {[%clk 0:00:06]}  Qa7 {[%clk 0:00:02]} 50. Qc5 {[%clk 0:00:05]}  Qa8 {[%clk 0:00:00]} 51. Rd7 {[%clk 0:00:04]} 1-0


[Site "https://www.chess.com"]

[Event "Titled Tuesday Blitz June 20 Early 2023"]
[White "Aradhya, Garg"]
[Black "Marn, Jan"]
[WhiteFideId "25006746"]
[BlackFideId "14619245"]
[WhiteElo "2263"]
[BlackElo "2242"]
[Result "1-0"]
[Round "4"]
[TimeControl "180+2"]
[Date "2023.06.20"]
[WhiteClock "0:01:30"]
[BlackClock "0:00:11"]
[Board "134"]

1. d4 {[%clk 0:03:00]}  d5 {[%clk 0:02:55]} 2. c4 {[%clk 0:03:01]}  e6 {[%clk 0:02:56]} 3. Nc3 {[%clk 0:03:00]}  a6 {[%clk 0:02:53]} 4. cxd5 {[%clk 0:02:58]}  exd5 {[%clk 0:02:53]} 5. a3 {[%clk 0:02:58]}  Nf6 {[%clk 0:02:46]} 6. Bg5 {[%clk 0:02:57]}  Bd6 {[%clk 0:02:46]} 7. Nxd5 {[%clk 0:02:53]}  Be6 {[%clk 0:02:45]} 8. Nxf6+ {[%clk 0:02:50]}  gxf6 {[%clk 0:02:46]} 9. Bh4 {[%clk 0:02:50]}  Nc6 {[%clk 0:02:45]} 10. e3 {[%clk 0:02:50]}  Rg8 {[%clk 0:02:37]} 11. Bg3 {[%clk 0:02:47]}  Qd7 {[%clk 0:02:24]} 12. Bd3 {[%clk 0:02:41]}  h5 {[%clk 0:02:20]} 13. Nf3 {[%clk 0:02:40]}  Bg4 {[%clk 0:02:11]} 14. Bxd6 {[%clk 0:02:34]}  Qxd6 {[%clk 0:02:09]} 15. h3 {[%clk 0:02:34]}  Be6 {[%clk 0:02:06]} 16. Nh4 {[%clk 0:02:33]}  O-O-O {[%clk 0:02:01]} 17. Qf3 {[%clk 0:02:24]}  Ne5 {[%clk 0:01:45]} 18. dxe5 {[%clk 0:02:11]}  Qxd3 {[%clk 0:01:44]} 19. exf6 {[%clk 0:02:12]}  Qd2+ {[%clk 0:01:12]} 20. Kf1 {[%clk 0:02:11]}  Qxb2 {[%clk 0:01:13]} 21. Re1 {[%clk 0:02:02]}  Qxa3 {[%clk 0:01:04]} 22. Qxh5 {[%clk 0:02:01]}  Qb4 {[%clk 0:00:45]} 23. Rc1 {[%clk 0:01:47]}  Rh8 {[%clk 0:00:21]} 24. Qe5 {[%clk 0:01:46]}  Bc4+ {[%clk 0:00:20]} 25. Kg1 {[%clk 0:01:47]}  Rxh4 {[%clk 0:00:20]} 26. g3 {[%clk 0:01:38]}  Rhh8 {[%clk 0:00:17]} 27. Qe4 {[%clk 0:01:38]}  b5 {[%clk 0:00:17]} 28. Qa8+ {[%clk 0:01:35]}  Kd7 {[%clk 0:00:17]} 29. Rd1+ {[%clk 0:01:35]}  Ke6 {[%clk 0:00:13]} 30. Rxd8 {[%clk 0:01:35]}  Qb1+ {[%clk 0:00:13]} 31. Kg2 {[%clk 0:01:34]}  Rxd8 {[%clk 0:00:13]} 32. Qxd8 {[%clk 0:01:31]}  Bd5+ {[%clk 0:00:11]} 33. Qxd5+ {[%clk 0:01:30]} 1-0


[Site "https://www.chess.com"]